Cogmind - Beta 14 --- EXPLORER MODE // 2024.08.18 @ 16:59:44 // Winter2019/RPGLIKE Player: soporte tecnico Result: Self-destructed Performance ------------- Evolutions (6) 3000 Regions Visited (23) 4600 Robots Destroyed (213) 1065 Value Destroyed (10427) 10427 Prototype IDs (18) 360 Alien Tech Used (2) 400 Bonus (3248) 3248 TOTAL SCORE: 23100 Bonus ------- High Alert Combat Kills 214 Follower Combat Kills 151 Entered Garrisons 400 Used RIF Installer 1000 Entered DSFs 500 Network Hubs Disabled 200 Met Zhirov 300 Met R17 at Cetus 500 Friendly Fire -17 Cogmind --------- Core Integrity 925/1100 Matter 526/600 Energy 760/760 System Corruption 2% Temperature Cool (0) Movement Treading (160) Location -4/Waste Parts ------- > --- POWER (2) -------- Neutrino Core Fusion Reactor > --- PROPULSION (4) --- Heavy Treads > --- UTILITY (5) ------ Experimental Optical Array Thermal Shield > --- WEAPON (4) ------- Wave Gun > --- INVENTORY (5) ---- Medium Treads Improved Medium Treads Experimental Power Shielding Plasma Rifle Micro-nuke Launcher Peak State ------------ > --- POWER ------------ Neutrino Core Fusion Reactor > --- PROPULSION ------- Improved Medium Treads Improved Medium Treads Heavy Treads > --- UTILITY ---------- Advanced Cooling System Experimental Optical Array Particle Accelerator Thermal Shield Advanced Shield Generator > --- WEAPON ----------- Wave Gun Long-range Proton Cannon KE Penetrator Advanced KE Penetrator > --- INVENTORY -------- Medium Treads Improved Medium Treads Experimental Power Shielding Advanced Focal Shield Plasma Rifle [Rating: 96] Favorites ----------- Power Light Fission Core Engine Ion Engine Power Core Light Fission Core Reactor Fusion Reactor Propulsion Light Treads Treads Light Treads Flight Unit Xenon Bombardment Thruster Utility Light Armor Plating Device Thermal Shield Processor Experimental Optical Array Protection Light Armor Plating Weapon Gauss Rifle Energy Gun Wave Gun Energy Cannon Long-range Proton Cannon Ballistic Gun Gauss Rifle Ballistic Cannon Bore Cannon Launcher Improved Grenade Launcher Impact Weapon Shock Maul Build | -11 -10 -10 -10 -8 -8 -7 -7 -6 -6 -6 -6 -6 -6 -6 -5 -5 -5 -5 -5 -5 -4 -4 -4 ------- Run | Yrd Mat Min Sub Mat Sto Fac DSF Fac Gar Fac Ext Cet Arc Hub Fac Gar Fac Upp Upp Zhi Pro Fac Was Slots Evolved 11 | 3 . 2 1 3 . . 2 . . . . . . . . . . . . . . . . Power 1 | . . . . 1 . . . . . . . . . . . . . . . . . . . Propulsion 3 | 1 . . . 2 . . . . . . . . . . . . . . . . . . . Utility 4 | 1 . 2 . . . . 1 . . . . . . . . . . . . . . . . Weapon 3 | 1 . . 1 . . . 1 . . . . . . . . . . . . . . . . Parts Attached 116 | 8 1 6 3 23 8 . 5 3 3 10 12 2 . . 9 7 3 . 2 3 . 2 6 Power 17 | 1 . . . 3 . . 1 . 1 3 2 . . . . 2 . . . 1 . 1 2 Engine 6 | 1 . . . 2 . . 1 . . 1 . . . . . 1 . . . . . . . Core 9 | . . . . 1 . . . . 1 2 2 . . . . 1 . . . . . 1 1 Reactor 2 | . . . . . . . . . . . . . . . . . . . . 1 . . 1 Propulsion 25 | 2 . . . 12 2 . . . . . 4 . . . 1 1 . . 2 . . . 1 Treads 18 | 2 . . . 5 2 . . . . . 4 . . . 1 1 . . 2 . . . 1 Leg . | . . . . . . . . . . . . . . . . . . . . . . . . Wheel . | . . . . . . . . . . . . . . . . . . . . . . . . Hover . | . . . . . . . . . . . . . . . . . . . . . . . . Flight 7 | . . . . 7 . . . . . . . . . . . . . . . . . . . Utility 41 | 3 . 6 . 4 2 . 2 2 2 4 3 1 . . 4 2 3 . . 2 . 1 . Device 26 | 1 . 2 . 4 2 . 1 2 2 4 1 1 . . 1 2 2 . . 1 . . . Storage . | . . . . . . . . . . . . . . . . . . . . . . . . Processor 2 | . . . . . . . . . . . . . . . 1 . . . . . . 1 . Hackware . | . . . . . . . . . . . . . . . . . . . . . . . . Protection 13 | 2 . 4 . . . . 1 . . . 2 . . . 2 . 1 . . 1 . . . Artifact . | . . . . . . . . . . . . . . . . . . . . . . . . Weapon 33 | 2 1 . 3 4 4 . 2 1 . 3 3 1 . . 4 2 . . . . . . 3 Energy Gun 10 | . . . 3 2 1 . 1 . . . . . . . 2 . . . . . . . 1 Energy Cannon 1 | . . . . . . . . . . . . . . . 1 . . . . . . . . Ballistic Gun 16 | 2 1 . . 1 2 . . 1 . 2 2 1 . . 1 2 . . . . . . 1 Ballistic Cannon 1 | . . . . . . . . . . . 1 . . . . . . . . . . . . Launcher 4 | . . . . 1 . . 1 . . 1 . . . . . . . . . . . . 1 Special Weapon . | . . . . . . . . . . . . . . . . . . . . . . . . Impact Weapon 1 | . . . . . 1 . . . . . . . . . . . . . . . . . . Slashing Weapon . | . . . . . . . . . . . . . . . . . . . . . . . . Piercing Weapon . | . . . . . . . . . . . . . . . . . . . . . . . . Special Melee Weapon . | . . . . . . . . . . . . . . . . . . . . . . . . Unidentified Prototypes 9 | . . 1 . 1 1 . . . . . . 1 . . . . . . . 5 . . . Parts Lost 13 | . . . . 2 1 . . . 2 2 1 . . . . . . . . . . . 5 Power 1 | . . . . . . . . . 1 . . . . . . . . . . . . . . Propulsion 2 | . . . . . . . . . . . . . . . . . . . . . . . 2 Utility 8 | . . . . 2 . . . . 1 2 1 . . . . . . . . . . . 2 Weapon 2 | . . . . . 1 . . . . . . . . . . . . . . . . . 1 Highest Loss Streak 5 | . . . . 1 1 . . . 1 2 1 . . . . . . . . . . . 5 To Critical Strikes . | . . . . . . . . . . . . . . . . . . . . . . . . Average Slot Usage (%) 95 | . 100 99 99 91 98 100 99 100 99 98 96 100 100 100 93 86 92 93 93 91 93 93 77 Engine 5 | . 14 11 10 9 7 7 5 6 6 2 5 . . . . 2 6 6 6 6 6 2 . Core 5 | . . . . 4 7 7 6 6 5 10 6 13 13 13 13 10 6 6 6 2 . 3 5 Treads 22 | . 28 23 21 16 29 30 26 26 26 26 26 26 26 26 20 19 20 20 20 20 20 20 17 Device 23 | . 14 11 10 20 29 30 26 26 26 31 26 26 26 26 23 19 25 26 26 24 26 26 23 Protection 7 | . 14 27 32 10 . . 5 6 5 . 2 6 6 6 6 6 6 6 6 6 6 1 . Energy Gun 5 | . . . 11 17 13 7 7 7 6 2 . . . . 6 8 6 6 6 6 6 6 5 Energy Cannon 2 | . . . . . . . . . . . . . . . . 6 6 6 6 6 6 6 3 Ballistic Gun 14 | . 28 23 11 3 7 15 11 11 13 17 19 20 20 20 15 10 13 13 13 13 13 13 7 Launcher 1 | . . . . . . . 5 6 6 5 4 . . . . . . . . . . . 1 Peak Build Rating 96 | 9 9 16 20 37 37 35 40 40 41 47 65 72 72 72 83 83 85 85 85 93 93 96 96 Average Rating 48 | 6 8 13 17 28 33 35 36 38 39 43 51 71 72 72 78 79 84 85 85 88 93 95 82 On Entrance 54 | . 9 9 16 20 32 35 35 37 39 41 47 65 72 72 72 83 80 85 85 85 93 93 96 Naked Turns . | . . . . . . . . . . . . . . . . . . . . . . . . Heaviest Build 67 | 14 13 23 31 33 26 24 35 36 41 48 55 57 57 57 58 59 62 53 53 60 58 62 67 Greatest Support 135 | 40 40 40 40 80 80 80 85 85 85 85 117 117 117 117 135 135 135 135 135 135 135 135 135 Greatest Overweight (x) 4 | . . . . 4 . . . . . . . . . . . . . . . . . . . Average Overweight (x) . | . . . . . . . . . . . . . . . . . . . . . . . . Largest Inventory Capacity 5 | . 3 3 3 3 4 4 5 5 5 5 5 5 5 5 5 5 5 5 5 5 5 5 5 Average Capacity 3 | . 2 3 3 3 3 4 4 5 5 5 5 5 5 5 5 5 5 5 5 5 5 5 5 Most Carried 5 | . 1 3 3 3 4 4 5 4 5 5 5 4 3 3 5 5 5 5 5 5 5 5 5 Average Carried 3 | . . 2 2 . 1 4 3 3 3 4 3 2 3 3 4 4 4 5 5 4 5 4 4 Final Capacity 5 | . 3 3 3 3 4 4 5 5 5 5 5 5 5 5 5 5 5 5 5 5 5 5 5 Final Carried 5 | . 1 3 2 1 4 4 3 3 4 5 2 3 3 3 5 4 5 5 5 5 5 5 5 Class Distribution -------------------- 34% | Scavenger-Tank 29% | Hacker-Tank 27% | Hacker-Mutant 3% | Scavenger-Mutant Dominant Class ---------------- Hacker-Mutant | -10/Materials Hacker-Mutant | -10/Mines Hacker-Mutant | -10/Subcaves Scavenger-Gunner | -8/Materials Scavenger-Mutant | -8/Storage Scavenger-Skirmisher | -7/Factory Scavenger-Tank | -7/DSF Scavenger-Tank | -6/Factory Scavenger-Tank | -6/Garrison Scavenger-Tank | -6/Factory Scavenger-Tank | -6/Extension Scavenger-Tank | -6/Cetus Scavenger-Tank | -6/Archives Scavenger-Tank | -6/Hub_04(d) Scavenger-Tank | -5/Factory Hacker-Tank | -5/Garrison Hacker-Tank | -5/Factory Hacker-Tank | -5/Upper Caves Hacker-Tank | -5/Upper Caves Hacker-Tank | -5/Zhirov Hacker-Tank | -4/Proximity Caves Hacker-Tank | -4/Factory Hacker-Tank | -4/Waste Resources | -11 -10 -10 -10 -8 -8 -7 -7 -6 -6 -6 -6 -6 -6 -6 -5 -5 -5 -5 -5 -5 -4 -4 -4 ----------- Run | Yrd Mat Min Sub Mat Sto Fac DSF Fac Gar Fac Ext Cet Arc Hub Fac Gar Fac Upp Upp Zhi Pro Fac Was Matter Collected 6568 | 316 28 84 219 565 212 24 436 234 602 776 787 726 114 233 119 394 78 88 122 . 156 209 46 Remotely . | . . . . . . . . . . . . . . . . . . . . . . . . Salvage Created 9674 | 95 28 109 319 1025 689 . 482 556 747 592 683 761 215 643 . 973 280 98 307 . 334 738 . Parts 502 | 5 2 5 20 55 41 . 27 19 5 30 43 34 12 36 . 43 30 9 23 . 14 49 . Haulers Intercepted 8 | . . . . 4 2 . . . . . . . . 1 . . 1 . . . . . . Recyclers Shooed 1 | . . . . . . . . . . 1 . . . . . . . . . . . . . Parts Field Recycled . | . . . . . . . . . . . . . . . . . . . . . . . . Retrieved Matter . | . . . . . . . . . . . . . . . . . . . . . . . . Parts Self-Destructed . | . . . . . . . . . . . . . . . . . . . . . . . . Prevented . | . . . . . . . . . . . . . . . . . . . . . . . . Kills | -11 -10 -10 -10 -8 -8 -7 -7 -6 -6 -6 -6 -6 -6 -6 -5 -5 -5 -5 -5 -5 -4 -4 -4 ------- Run | Yrd Mat Min Sub Mat Sto Fac DSF Fac Gar Fac Ext Cet Arc Hub Fac Gar Fac Upp Upp Zhi Pro Fac Was Combat Hostiles Destroyed 232 | 1 2 2 7 16 15 . 12 10 56 14 15 16 4 9 . 18 6 5 5 . 6 13 . Melee 5 | . . . . . . . . . 1 4 . . . . . . . . . . . . . Guns 177 | 1 2 2 7 11 15 . 10 10 47 9 12 10 2 6 . 12 3 5 4 . 1 8 . Cannons 27 | . . . . . . . . . . . 3 6 2 3 . 4 3 . 1 . 1 4 . AOE 18 | . . . . 5 . . 2 . 8 1 . . . . . . . . . . 2 . . Classes Destroyed 20 | 3 1 1 2 7 . . 4 . 2 . . . . . . . . . . . . . . Worker 7 | . . . . 3 . . . . . . . . . 1 . . 2 . . . . 1 . Builder 8 | . . . . 2 . . . . . 1 2 . . 3 . . . . . . . . . Tunneler 1 | 1 . . . . . . . . . . . . . . . . . . . . . . . Hauler 8 | . . . . 4 2 . . . . . . . . 1 . . 1 . . . . . . Recycler 3 | 1 . . . 1 . . . . . . . . . 1 . . . . . . . . . Watcher 7 | . . . . 1 . . . . . 1 . 2 . 1 . . 1 . . . . 1 . Swarmer 18 | . 2 . . . 3 . 2 . . . . 5 . . . . 2 . . . 4 . . Cutter 2 | . . . . . . . 2 . . . . . . . . . . . . . . . . Grunt 79 | . . 2 . 11 8 . 3 8 . 6 8 3 . 6 . 13 2 3 4 . . 2 . Brawler 3 | . . . . . . . 1 . . . . . . . . . . 1 . . . 1 . Duelist 4 | . . . . 1 . . . . . . 3 . . . . . . . . . . . . Sentry 23 | . . . . 3 3 . 1 . 1 2 1 . 4 3 . 1 . 1 . . 1 2 . Specialist 1 | . . . . . . . 1 . . . . . . . . . . . . . . . . Hunter 13 | . . . . 1 1 . 1 2 . 2 . . . . . 2 . . . . . 4 . Programmer 12 | . . . . . . . . . 2 3 1 . . . . . 2 . . . . 4 . Heavy 1 | . . . . . . . 1 . . . . . . . . . . . . . . . . Behemoth 8 | . . . . . . . . . 1 1 2 . . . . 2 . . 1 . 1 . . Cetus Guard 8 | . . . . . . . . . . . . 8 . . . . . . . . . . . Artisan 1 | . . . 1 . . . . . . . . . . . . . . . . . . . . Subdweller 7 | . . . 7 . . . . . . . . . . . . . . . . . . . . Assembled 53 | 1 . . . . . . . . 52 . . . . . . . . . . . . . . Best Kill Streak 12 | 1 2 2 2 7 5 . 4 4 12 4 4 5 4 8 . 5 5 3 2 . 4 4 . Combat Bots Only 12 | 1 2 2 2 4 5 . 4 4 12 3 4 5 4 3 . 5 2 3 2 . 4 4 . Max Kills in Single Turn 4 | 1 1 1 1 2 1 . 1 2 3 1 1 2 1 4 . 1 3 1 1 . 2 1 . Gunslinging 1 | . . . . . . . . 1 1 . . . . . . . . . . . . . . Exploded 3 | . . . . 1 . . 1 . 3 1 . . . . . . . . . . 2 . . Melee 1 | . . . . . . . . . 1 1 . . . . . . . . . . . . . Uniques/NPCs Destroyed . | . . . . . . . . . . . . . . . . . . . . . . . . Combat | -11 -10 -10 -10 -8 -8 -7 -7 -6 -6 -6 -6 -6 -6 -6 -5 -5 -5 -5 -5 -5 -4 -4 -4 -------- Run | Yrd Mat Min Sub Mat Sto Fac DSF Fac Gar Fac Ext Cet Arc Hub Fac Gar Fac Upp Upp Zhi Pro Fac Was Hostile Shots Fired 1651 | 3 11 4 53 79 85 . 93 83 199 203 277 95 12 78 10 181 16 13 29 . 30 87 10 Missed 533 | 1 3 2 13 25 23 . 31 16 80 69 91 31 4 30 3 37 12 4 11 . 9 37 1 Damage Taken 9530 | 14 43 40 520 704 530 . 545 464 716 1151 2033 601 73 276 19 713 39 90 139 . 227 375 218 Core 6919 | 7 31 35 306 522 416 . 397 331 503 883 1546 426 55 175 13 454 25 63 102 . 159 295 175 Absorbed by Shields 2966 | . . . . . . . 199 111 301 392 347 236 28 107 42 834 16 34 54 . 86 156 23 Redirected to Core 5954 | 7 24 19 269 289 350 . 361 290 441 798 1387 378 55 160 8 418 25 63 84 . 127 248 153 Redirected to Shielding 91 | . . . 57 12 . . . . . . . . . . . . . . . . 22 . . Ignored by Resistances 9540 | 9 30 24 314 340 326 . 555 504 724 1088 1702 640 90 412 44 1546 38 103 211 . 266 408 166 Regen/Repaired (Parts) 195 | . . . . . 99 . . . . 96 . . . . . . . . . . . . . Core Remaining (%) 80 | 100 . . 62 . 73 . 81 . . . . . . 90 . . . . . . 78 . . Volleys Fired 561 | 9 3 4 45 58 38 . 34 27 73 49 47 34 6 18 1 41 9 8 14 . 12 24 7 Largest 4 | 2 2 2 3 3 3 . 3 3 3 3 4 4 4 4 4 4 4 4 4 . 4 4 4 Hottest 272 | 40 40 40 180 180 162 . 116 149 129 121 138 150 150 150 272 272 230 230 230 . 230 230 230 Shots Fired 1634 | 18 6 8 91 130 80 . 85 81 205 114 147 136 24 72 4 157 36 32 56 . 45 93 14 Gun 1420 | 18 6 8 91 123 80 . 77 81 199 99 139 102 18 54 3 116 27 24 42 . 33 69 11 Cannon 176 | . . . . . . . . . . . 8 34 6 18 1 41 9 8 14 . 12 24 1 Launcher 38 | . . . . 7 . . 8 . 6 15 . . . . . . . . . . . . 2 Special . | . . . . . . . . . . . . . . . . . . . . . . . . Kinetic 1078 | 18 6 8 63 38 40 . 52 51 134 90 147 136 24 72 1 60 18 16 28 . 24 46 6 Thermal 408 | . . . 28 85 40 . 25 30 65 9 . . . . 2 56 9 8 14 . 9 23 5 Explosive 38 | . . . . 7 . . 8 . 6 15 . . . . . . . . . . . . 2 Electromagnetic 110 | . . . . . . . . . . . . . . . 1 41 9 8 14 . 12 24 1 Robot Hit Streak 73 | 5 2 8 48 52 37 . 24 39 21 55 73 40 22 38 5 43 40 23 24 . 25 47 10 Robot Miss Streak 2 | 2 1 . 1 2 1 . 2 1 2 1 2 1 . 1 1 2 1 1 1 . 1 2 2 Penetration Max 1 | . . . . 1 1 . . 1 1 . 1 1 1 1 . 1 . . . . . 1 . Secondary Targets 26 | . . . 1 3 2 . 3 3 11 . 3 . . . . . . . . . . . . Max Gunslinging Chain 1 | . . . 1 1 1 . 1 1 1 . 1 . . . . . . . . . . . . Shots Hit Robots 1294 | 10 3 6 64 102 66 . 70 73 155 101 130 104 20 55 3 123 21 23 44 . 40 72 9 Core Hits 550 | 6 2 5 17 44 30 . 31 30 95 39 46 47 10 29 . 42 14 12 12 . 8 31 . Critical Kills 18 | . . . . . . . . . 1 . 2 6 2 3 . 2 . . . . . 2 . Critical Parts Destroyed 42 | . . . . 3 . . . 2 2 3 . 11 1 10 . 5 . 1 . . 1 2 1 Critical Strikes 84 | . . . 1 4 . . 3 3 7 3 2 21 3 13 . 11 . 2 2 . 3 5 1 Burn 15 | . . . . . . . 3 1 4 . . . . . . 3 . 1 2 . . 1 . Destroy 67 | . . . 1 4 . . . 2 3 3 2 21 3 13 . 7 . 1 . . 2 4 1 Corrupt 2 | . . . . . . . . . . . . . . . . 1 . . . . 1 . . Melee Attacks . | . . . . . . . . . . . . . . . . . . . . . . . . Impact . | . . . . . . . . . . . . . . . . . . . . . . . . Slashing . | . . . . . . . . . . . . . . . . . . . . . . . . Piercing . | . . . . . . . . . . . . . . . . . . . . . . . . Sneak Attacks . | . . . . . . . . . . . . . . . . . . . . . . . . Combat Hostiles . | . . . . . . . . . . . . . . . . . . . . . . . . Follow-up Attacks . | . . . . . . . . . . . . . . . . . . . . . . . . Damage Inflicted 31592 | 112 37 75 791 2603 1269 . 1586 1254 3442 2467 2680 2602 489 2112 77 3401 754 611 1106 . 1248 2408 468 Guns 23755 | 112 37 75 791 2130 1269 . 950 1254 2872 1517 2501 2097 395 1287 48 2286 391 414 781 . 754 1477 317 Cannons 4189 | . . . . . . . . . . . 179 505 94 323 29 1115 238 197 325 . 388 793 3 Explosions 3592 | . . . . 473 . . 636 . 564 905 . . . 497 . . 125 . . . 106 138 148 Melee . | . . . . . . . . . . . . . . . . . . . . . . . . Ramming 56 | . . . . . . . . . 6 45 . . . 5 . . . . . . . . . Kinetic 17943 | 112 37 75 512 728 606 . 647 870 2044 1384 2680 2602 489 1610 . 1162 177 246 460 . 506 833 163 Thermal 7343 | . . . 279 1402 663 . 303 384 828 133 . . . 61 48 1124 339 168 321 . 354 782 154 Explosive 2726 | . . . . 473 . . 636 . 564 905 . . . . . . . . . . . . 148 Electromagnetic 3524 | . . . . . . . . . . . . . . 436 29 1115 238 197 325 . 388 793 3 Impact . | . . . . . . . . . . . . . . . . . . . . . . . . Slashing . | . . . . . . . . . . . . . . . . . . . . . . . . Piercing . | . . . . . . . . . . . . . . . . . . . . . . . . Highest Corruption 2 | . . . . . . 1 1 2 2 2 1 . . 2 . . . . . . . 2 2 Average Corruption 1 | . . . . . . 1 1 1 2 1 1 . . 2 . . . . . . . 1 2 Corruption Purged 5 | . . . . . . . . . . 4 1 . . . . . . . . . . . . Corruption Blocked . | . . . . . . . . . . . . . . . . . . . . . . . . Effects 52 | . . . . . . . 5 10 14 15 . . . . . . . . . . . 6 2 Message Errors 14 | . . . . . . . 2 6 3 2 . . . . . . . . . . . 1 . Matter Fused 5 | . . . . . . . . . 1 3 . . . . . . . . . . . 1 . Heat Flow Errors 6 | . . . . . . . 1 1 3 . . . . . . . . . . . . . 1 Energy Discharges 7 | . . . . . . . 1 1 3 2 . . . . . . . . . . . . . Parts Rejected 1 | . . . . . . . . . . . . . . . . . . . . . . . 1 Parts Fused 1 | . . . . . . . 1 . . . . . . . . . . . . . . . . Data Loss (minor) 9 | . . . . . . . . . 3 4 . . . . . . . . . . . 2 . Misfires 4 | . . . . . . . . 1 . 2 . . . . . . . . . . . 1 . Alerts 1 | . . . . . . . . . . 1 . . . . . . . . . . . . . Weapon Failures 4 | . . . . . . . . 1 1 1 . . . . . . . . . . . 1 . Overload Shots . | . . . . . . . . . . . . . . . . . . . . . . . . Overflow Damage 117 | . . . . 2 . . . . 12 26 . . . 53 . 2 . . . . . 22 . Projectiles 43 | . . . . . . . . . . . . . . 19 . 2 . . . . . 22 . Explosions 74 | . . . . 2 . . . . 12 26 . . . 34 . . . . . . . . . Melee . | . . . . . . . . . . . . . . . . . . . . . . . . Knockbacks 3 | . . . . . . . . . . . 2 . . 1 . . . . . . . . . Impact . | . . . . . . . . . . . . . . . . . . . . . . . . Kinetic 3 | . . . . . . . . . . . 2 . . 1 . . . . . . . . . Secondary . | . . . . . . . . . . . . . . . . . . . . . . . . Self-Inflicted Damage 175 | . . . . . . . . . 65 43 . . . 61 . . . . . . . 6 . Shots 4 | . . . . . . . . . 1 1 . . . 1 . . . . . . . 1 . Rammed 4 | . . . . . . . . . . 4 . . . . . . . . . . . . . Targets Rammed 11 | . . . . . . . . . 1 9 . . . 1 . . . . . . . . . Kicked . | . . . . . . . . . . . . . . . . . . . . . . . . Crushed 7 | . . . . . . . . . 1 5 . . . 1 . . . . . . . . . Highest Temperature 799 | 78 . 15 100 799 36 . 617 240 150 116 170 243 78 143 120 414 6 21 23 . . . 28 Average Temperature 101 | 26 . 8 36 218 11 . 173 44 26 35 40 82 28 61 68 125 2 7 7 . . . 7 Received Heat Transfer 3979 | 80 18 15 114 477 441 . 132 416 196 516 814 42 18 214 . 338 . 30 76 . 30 12 . Effects 48 | . . . . 35 . . 11 . . . . . . . . 2 . . . . . . . Shutdowns 11 | . . . . 7 . . 3 . . . . . . . . 1 . . . . . . . Energy Bleed 3 | . . . . 3 . . . . . . . . . . . . . . . . . . . Interference 3 | . . . . 3 . . . . . . . . . . . . . . . . . . . Matter Decay 2 | . . . . 2 . . . . . . . . . . . . . . . . . . . Short Circuit 1 | . . . . 1 . . . . . . . . . . . . . . . . . . . Damage (minor) 5 | . . . . 2 . . 2 . . . . . . . . 1 . . . . . . . Damage (major) 21 | . . . . 15 . . 6 . . . . . . . . . . . . . . . . Damage (core) 2 | . . . . 2 . . . . . . . . . . . . . . . . . . . Siege Activations . | . . . . . . . . . . . . . . . . . . . . . . . . Robots Corrupted 5 | . . . . . . . . . . . . . . . . 2 . . . . 2 1 . Combat Hostiles 5 | . . . . . . . . . . . . . . . . 2 . . . . 2 1 . Parts Fried 14 | . . . . . . . . . . . . . . 1 . 3 2 . . . 4 4 . Impact Corruptions . | . . . . . . . . . . . . . . . . . . . . . . . . Robots Melted . | . . . . . . . . . . . . . . . . . . . . . . . . Combat Hostiles . | . . . . . . . . . . . . . . . . . . . . . . . . Parts Melted 12 | . . . 2 . 1 . . 3 1 . . . . . . 5 . . . . . . . Heat Transferred 13300 | . . . 350 1845 1332 . 962 999 2257 333 . . . 50 87 2182 496 333 629 . 346 914 185 Parts Sabotaged . | . . . . . . . . . . . . . . . . . . . . . . . . Parts Stolen . | . . . . . . . . . . . . . . . . . . . . . . . . Parts Stripped . | . . . . . . . . . . . . . . . . . . . . . . . . Power Chain Reactions 4 | . . . . . . . . . . . . . . 1 . . 1 . . . 1 1 . Alert | -11 -10 -10 -10 -8 -8 -7 -7 -6 -6 -6 -6 -6 -6 -6 -5 -5 -5 -5 -5 -5 -4 -4 -4 ------- Run | Yrd Mat Min Sub Mat Sto Fac DSF Fac Gar Fac Ext Cet Arc Hub Fac Gar Fac Upp Upp Zhi Pro Fac Was Peak Influence 586 | 40 77 71 . 262 259 79 424 438 531 302 239 245 163 557 218 586 377 . . . . 235 100 Initial 228 | . 19 21 . . 25 79 42 165 73 207 58 69 20 39 202 39 228 . . . . . 56 Average 124 | 1 43 19 . 125 131 79 169 230 330 115 119 131 124 150 165 349 253 . . . . 48 71 Maximum Alert Level 2 | . . . . 1 1 . 2 2 2 1 1 1 . 2 1 2 1 . . . . 1 . Low Security (%) 72 | 100 100 100 . 71 80 100 66 28 12 74 88 74 100 78 35 26 10 . . . . 91 100 Level 1 21 | . . . . 28 19 . 19 71 57 25 11 25 . 13 64 32 89 . . . . 8 . Level 2 5 | . . . . . . . 13 . 29 . . . . 8 . 40 . . . . . . . Level 3 . | . . . . . . . . . . . . . . . . . . . . . . . . Level 4 . | . . . . . . . . . . . . . . . . . . . . . . . . Level 5 . | . . . . . . . . . . . . . . . . . . . . . . . . High Security . | . . . . . . . . . . . . . . . . . . . . . . . . Max Security . | . . . . . . . . . . . . . . . . . . . . . . . . Sterilizations 1 | . . . . . . . 1 . . . . . . . . . . . . . . . . Squads Dispatched 32 | . . . . 4 3 1 3 2 . 7 3 1 . 3 . . 2 . . . . 3 . Investigation 14 | . . . . 2 2 1 . 2 . 2 1 1 . 1 . . . . . . . 2 . Extermination 4 | . . . . . . . . . . 2 . . . . . . 1 . . . . 1 . Reinforcement 14 | . . . . 2 1 . 3 . . 3 2 . . 2 . . 1 . . . . . . Assault . | . . . . . . . . . . . . . . . . . . . . . . . . Garrison . | . . . . . . . . . . . . . . . . . . . . . . . . Intercept . | . . . . . . . . . . . . . . . . . . . . . . . . Searches Triggered . | . . . . . . . . . . . . . . . . . . . . . . . . Construction Impeded 5 | . . . . . . . . . . 1 2 . . 1 . . 1 . . . . . . Haulers Reinforced 1 | . . . . . . . . . . 1 . . . . . . . . . . . . . Active Scanning Responses . | . . . . . . . . . . . . . . . . . . . . . . . . Cargo Convoy Interrupts . | . . . . . . . . . . . . . . . . . . . . . . . . Stealth | -11 -10 -10 -10 -8 -8 -7 -7 -6 -6 -6 -6 -6 -6 -6 -5 -5 -5 -5 -5 -5 -4 -4 -4 --------- Run | Yrd Mat Min Sub Mat Sto Fac DSF Fac Gar Fac Ext Cet Arc Hub Fac Gar Fac Upp Upp Zhi Pro Fac Was Distress Signals 16 | . . . . 4 3 . . . . 2 1 2 . 3 . . . . . . . 1 . Communications Jammed . | . . . . . . . . . . . . . . . . . . . . . . . . Distress Signals . | . . . . . . . . . . . . . . . . . . . . . . . . Times Spotted 319 | 2 4 2 8 27 20 . 13 12 75 19 29 22 6 15 3 20 7 5 6 . 6 17 1 Peak Tracking Total 8 | 1 2 2 3 4 5 . 4 5 8 3 7 5 2 8 3 6 3 3 3 . 2 4 1 Tactical Retreats 30 | 1 . . . 1 . . 2 1 12 1 4 3 . 1 . 3 . . 1 . . . . Traps | -11 -10 -10 -10 -8 -8 -7 -7 -6 -6 -6 -6 -6 -6 -6 -5 -5 -5 -5 -5 -5 -4 -4 -4 ------- Run | Yrd Mat Min Sub Mat Sto Fac DSF Fac Gar Fac Ext Cet Arc Hub Fac Gar Fac Upp Upp Zhi Pro Fac Was Traps Triggered 14 | . . 2 . 2 2 . . . . 2 1 . . 1 1 1 1 . . . . 1 . Indirectly 1 | . . . . . . . . . . . . . . 1 . . . . . . . . . Trap Hack Attempts . | . . . . . . . . . . . . . . . . . . . . . . . . Triggered . | . . . . . . . . . . . . . . . . . . . . . . . . Disarmed . | . . . . . . . . . . . . . . . . . . . . . . . . Reprogrammed . | . . . . . . . . . . . . . . . . . . . . . . . . Reused . | . . . . . . . . . . . . . . . . . . . . . . . . Traps Extracted . | . . . . . . . . . . . . . . . . . . . . . . . . Installed . | . . . . . . . . . . . . . . . . . . . . . . . . Triggered 2 | . . . . . . . . . . . . . . . . . . . . . 2 . . Machines | -11 -10 -10 -10 -8 -8 -7 -7 -6 -6 -6 -6 -6 -6 -6 -5 -5 -5 -5 -5 -5 -4 -4 -4 ---------- Run | Yrd Mat Min Sub Mat Sto Fac DSF Fac Gar Fac Ext Cet Arc Hub Fac Gar Fac Upp Upp Zhi Pro Fac Was Machines Disabled 29 | . . . . . . . 1 1 3 2 2 3 . 14 . . 1 . . . . 2 . Max in Single Turn 12 | . . . . . . . 1 1 2 1 . 1 . 12 . . 1 . . . . 1 . Garrison Access 1 | . . . . . 1 . . . . . . . . . . . . . . . . . . Phase Generator 1 | . . . . . . . . . 1 . . . . . . . . . . . . . . Network Hub 1 | . . . . . . . . . . . . . . 1 . . . . . . . . . Machines Repaired . | . . . . . . . . . . . . . . . . . . . . . . . . Machines Dismantled . | . . . . . . . . . . . . . . . . . . . . . . . . Machines Sabotaged . | . . . . . . . . . . . . . . . . . . . . . . . . Overloaded Fab Kills . | . . . . . . . . . . . . . . . . . . . . . . . . Hacking | -11 -10 -10 -10 -8 -8 -7 -7 -6 -6 -6 -6 -6 -6 -6 -5 -5 -5 -5 -5 -5 -4 -4 -4 --------- Run | Yrd Mat Min Sub Mat Sto Fac DSF Fac Gar Fac Ext Cet Arc Hub Fac Gar Fac Upp Upp Zhi Pro Fac Was Machines Accessed 56 | . 3 3 1 3 6 2 . 3 1 3 6 2 1 2 3 1 . 1 . 9 . 6 . Terminals 29 | . 2 1 . 3 4 1 . . 1 . 6 2 . 2 1 1 . . . . . 5 . Fabricators 1 | . . . . . . . . . . . . . . . . . . . . . . 1 . Repair Stations 5 | . . . . . 1 . . 2 . 2 . . . . . . . . . . . . . Recycling Units 2 | . 1 . . . . . . . . 1 . . . . . . . . . . . . . Scanalyzers 1 | . . . . . . . . . . . . . . . 1 . . . . . . . . Garrison Access 4 | . . . . . 1 1 . 1 . . . . . . 1 . . . . . . . . Total Hacks 178 | . 14 3 5 13 14 4 . 9 2 9 10 5 1 7 7 3 . 1 . 48 . 23 . Successful 129 | . 11 3 5 7 9 1 . 3 1 7 6 5 1 4 5 1 . 1 . 48 . 11 . Failed 49 | . 3 . . 6 5 3 . 6 1 2 4 . . 3 2 2 . . . . . 12 . Catastrophic 10 | . 1 . . 2 . 1 . . . . . . . . 1 . . . . . . 5 . Database Lockouts . | . . . . . . . . . . . . . . . . . . . . . . . . Manual . | . . . . . . . . . . . . . . . . . . . . . . . . Terminals 87 | . 12 1 . 13 9 1 . . 2 . 10 5 . 7 3 3 . . . . . 21 . Fabricators 2 | . . . . . . . . . . . . . . . . . . . . . . 2 . Repair Stations 17 | . . . . . 4 . . 6 . 7 . . . . . . . . . . . . . Recycling Units 4 | . 2 . . . . . . . . 2 . . . . . . . . . . . . . Scanalyzers 3 | . . . . . . . . . . . . . . . 3 . . . . . . . . Garrison Access 8 | . . . . . 1 3 . 3 . . . . . . 1 . . . . . . . . Terminal Hacks 107 | . 9 3 5 7 4 1 . . 1 . 6 5 1 4 2 1 . 1 . 48 . 9 . Record 64 | . 7 1 5 4 . . . . . . . 4 1 2 . . . . . 36 . 4 . Part Schematic 4 | . . . . . . . . . . . . . . . . . . . . 4 . . . Robot Analysis 7 | . . . . 1 2 . . . . . . . . . . . . . . 4 . . . Prototype ID Bank 4 | . . . . . . . . . . . . . . . . . . . . 4 . . . Open Door 11 | . . 2 . . 1 . . . . . 6 1 . . . . . 1 . . . . . Open DSF 2 | . . . . . . 1 . . . . . . . . . . . . . . . 1 . Level Access Points 1 | . . . . . . . . . . . . . . . 1 . . . . . . . . Emergency Access Points 1 | . . . . . . . . . . . . . . 1 . . . . . . . . . Alert Level 2 | . 1 . . . . . . . . . . . . . . . . . . . . 1 . Unreport Threat 1 | . . . . . . . . . . . . . . . 1 . . . . . . . . Locate Traps 2 | . 1 . . . . . . . . . . . . 1 . . . . . . . . . Recall Reinforcements 1 | . . . . . . . . . . . . . . . . . . . . . . 1 . Hauler Manifests 1 | . . . . . . . . . . . . . . . . . . . . . . 1 . Zone Layout 4 | . . . . 2 1 . . . . . . . . . . . . . . . . 1 . Patrol Navigation 1 | . . . . . . . . . 1 . . . . . . . . . . . . . . Security Stations 1 | . . . . . . . . . . . . . . . . 1 . . . . . . . Fabricator Hacks 2 | . . . . . . . . . . . . . . . . . . . . . . 2 . Load Schematic 1 | . . . . . . . . . . . . . . . . . . . . . . 1 . Build 1 | . . . . . . . . . . . . . . . . . . . . . . 1 . Repair Station Hacks 12 | . . . . . 4 . . 2 . 6 . . . . . . . . . . . . . Scan Component 8 | . . . . . 2 . . 2 . 4 . . . . . . . . . . . . . Repair 4 | . . . . . 2 . . . . 2 . . . . . . . . . . . . . Recycling Unit Hacks 3 | . 2 . . . . . . . . 1 . . . . . . . . . . . . . Process 1 | . 1 . . . . . . . . . . . . . . . . . . . . . . Report Inventory 2 | . 1 . . . . . . . . 1 . . . . . . . . . . . . . Scanalyzer 2 | . . . . . . . . . . . . . . . 2 . . . . . . . . Insert Component 1 | . . . . . . . . . . . . . . . 1 . . . . . . . . Analyze 1 | . . . . . . . . . . . . . . . 1 . . . . . . . . Garrison Access Hacks 3 | . . . . . 1 . . 1 . . . . . . 1 . . . . . . . . Unlock Access 2 | . . . . . . . . 1 . . . . . . 1 . . . . . . . . Seal Access 1 | . . . . . 1 . . . . . . . . . . . . . . . . . . Unauthorized Hacks . | . . . . . . . . . . . . . . . . . . . . . . . . Terminals . | . . . . . . . . . . . . . . . . . . . . . . . . Fabricators . | . . . . . . . . . . . . . . . . . . . . . . . . Repair Stations . | . . . . . . . . . . . . . . . . . . . . . . . . Recycling Units . | . . . . . . . . . . . . . . . . . . . . . . . . Scanalyzers . | . . . . . . . . . . . . . . . . . . . . . . . . Garrison Access . | . . . . . . . . . . . . . . . . . . . . . . . . Data Cores Recovered . | . . . . . . . . . . . . . . . . . . . . . . . . Used . | . . . . . . . . . . . . . . . . . . . . . . . . Hacking Detections 28 | . 2 . . 3 3 1 . 3 1 3 2 1 . 2 3 1 . . . . . 3 . Full Trace Events 13 | . . . . 2 2 1 . 2 . 2 . 1 . 1 . . . . . . . 2 . Feedback Events 4 | . . . . . . 1 . 2 . . . . . . . . . . . . . 1 . Corruption 4 | . . . . . . 1 . 2 . . . . . . . . . . . . . 1 . Feedback Blocked . | . . . . . . . . . . . . . . . . . . . . . . . . Robot Schematics Acquired . | . . . . . . . . . . . . . . . . . . . . . . . . Robots Built . | . . . . . . . . . . . . . . . . . . . . . . . . Authchips . | . . . . . . . . . . . . . . . . . . . . . . . . Time . | . . . . . . . . . . . . . . . . . . . . . . . . Total Robot Build Rating . | . . . . . . . . . . . . . . . . . . . . . . . . Part Schematics Acquired 5 | . . . . . . . . . . . . . . . 1 . . . . 4 . . . Parts Built 1 | . . . . . . . . . . . . . . . . . . . . . . 1 . Authchips . | . . . . . . . . . . . . . . . . . . . . . . . . Time 93 | . . . . . . . . . . . . . . . . . . . . . . 93 . Total Part Build Rating 7 | . . . . . . . . . . . . . . . . . . . . . . 7 . Parts Repaired 4 | . . . . . 2 . . . . 2 . . . . . . . . . . . . . Time 106 | . . . . . 52 . . . . 54 . . . . . . . . . . . . . Parts Recycled . | . . . . . . . . . . . . . . . . . . . . . . . . Recycled Matter . | . . . . . . . . . . . . . . . . . . . . . . . . Retrieved Matter . | . . . . . . . . . . . . . . . . . . . . . . . . Retrieved Components . | . . . . . . . . . . . . . . . . . . . . . . . . Parts Scanalyzed 1 | . . . . . . . . . . . . . . . 1 . . . . . . . . Part Schematics Acquired 1 | . . . . . . . . . . . . . . . 1 . . . . . . . . Parts Damaged . | . . . . . . . . . . . . . . . . . . . . . . . . Bothacking | -11 -10 -10 -10 -8 -8 -7 -7 -6 -6 -6 -6 -6 -6 -6 -5 -5 -5 -5 -5 -5 -4 -4 -4 ------------ Run | Yrd Mat Min Sub Mat Sto Fac DSF Fac Gar Fac Ext Cet Arc Hub Fac Gar Fac Upp Upp Zhi Pro Fac Was Used RIF Installer 2 | . . . . . . . . . 1 . . . . . . 1 . . . . . . . Command Fork 1 | . . . . . . . . . . . . . . . . 1 . . . . . . . Robots Hacked . | . . . . . . . . . . . . . . . . . . . . . . . . Non-combat . | . . . . . . . . . . . . . . . . . . . . . . . . Combat . | . . . . . . . . . . . . . . . . . . . . . . . . Robot Hacks Applied . | . . . . . . . . . . . . . . . . . . . . . . . . Relay Couplers Released . | . . . . . . . . . . . . . . . . . . . . . . . . Fabnet Peak Effective % . | . . . . . . . . . . . . . . . . . . . . . . . . Robots Rewired . | . . . . . . . . . . . . . . . . . . . . . . . . Allies Hacked . | . . . . . . . . . . . . . . . . . . . . . . . . Hacks Repelled . | . . . . . . . . . . . . . . . . . . . . . . . . Allies | -11 -10 -10 -10 -8 -8 -7 -7 -6 -6 -6 -6 -6 -6 -6 -5 -5 -5 -5 -5 -5 -4 -4 -4 -------- Run | Yrd Mat Min Sub Mat Sto Fac DSF Fac Gar Fac Ext Cet Arc Hub Fac Gar Fac Upp Upp Zhi Pro Fac Was Total Allies 7 | . . . . . . . . . . . 7 . . . . . . . . . . . . Largest Group 7 | . . . . . . . . . . . 7 . . . . . . . . . . . . Highest-Rated Group 227 | . . . . . . . . . . . 227 . . . . . . . . . . . . Highest-Rated Ally 39 | . . . . . . . . . . . 39 . . . . . . . . . . . . Total Orders . | . . . . . . . . . . . . . . . . . . . . . . . . Ally Attacks 110 | . . . . . . . . . . . 110 . . . . . . . . . . . . Total Damage 1827 | . . . . . . . . . . . 1827 . . . . . . . . . . . . Kills 8 | . . . . . . . . . . . 8 . . . . . . . . . . . . Allies Corrupted . | . . . . . . . . . . . . . . . . . . . . . . . . Allies Melted . | . . . . . . . . . . . . . . . . . . . . . . . . Intel | -11 -10 -10 -10 -8 -8 -7 -7 -6 -6 -6 -6 -6 -6 -6 -5 -5 -5 -5 -5 -5 -4 -4 -4 ------- Run | Yrd Mat Min Sub Mat Sto Fac DSF Fac Gar Fac Ext Cet Arc Hub Fac Gar Fac Upp Upp Zhi Pro Fac Was Robot Analysis Total 7 | . . . . 1 2 . . . . . . . . . . . . . . 4 . . . Derelict Logs Recovered 4 | . . 1 . . . . . . . . . . . . . . . 2 . . 1 . . Drone Launches . | . . . . . . . . . . . . . . . . . . . . . . . . Drone Recoveries . | . . . . . . . . . . . . . . . . . . . . . . . . Exploration | -11 -10 -10 -10 -8 -8 -7 -7 -6 -6 -6 -6 -6 -6 -6 -5 -5 -5 -5 -5 -5 -4 -4 -4 ------------- Run | Yrd Mat Min Sub Mat Sto Fac DSF Fac Gar Fac Ext Cet Arc Hub Fac Gar Fac Upp Upp Zhi Pro Fac Was Turns Passed 18776 | 3122 212 774 1182 914 692 87 559 428 940 1585 1118 878 187 292 358 1040 445 797 570 492 960 1072 72 Spaces Moved 8701 | 999 125 406 624 401 261 55 129 179 395 770 532 469 97 127 201 518 227 466 318 300 574 503 25 Core 2 | 2 . . . . . . . . . . . . . . . . . . . . . . . Treads 8557 | 997 125 406 624 259 261 55 129 179 395 770 532 469 97 127 201 518 227 466 318 300 574 503 25 Legs . | . . . . . . . . . . . . . . . . . . . . . . . . Wheels . | . . . . . . . . . . . . . . . . . . . . . . . . Hover . | . . . . . . . . . . . . . . . . . . . . . . . . Flight 142 | . . . . 142 . . . . . . . . . . . . . . . . . . . Fastest Speed 50 | 50 160 160 160 99 160 160 160 160 160 160 156 156 156 156 156 160 160 160 160 160 160 160 160 Average Speed 158 | 159 160 160 160 143 160 160 160 160 160 160 156 156 156 156 159 160 160 160 160 160 160 160 160 Slowest Speed 360 | 160 160 160 160 360 160 160 160 160 160 160 160 156 156 156 160 160 160 160 160 160 160 160 160 Overloaded Moves . | . . . . . . . . . . . . . . . . . . . . . . . . Propulsion Burnouts . | . . . . . . . . . . . . . . . . . . . . . . . . Robots Hopped . | . . . . . . . . . . . . . . . . . . . . . . . . Cave-ins Triggered . | . . . . . . . . . . . . . . . . . . . . . . . . Teleports 1 | . . . . . . . . . . . . . . . . . . . . 1 . . . Exploration Rate (%) 45 | 79 28 68 34 32 54 1 89 3 60 15 63 95 82 21 5 50 9 69 55 62 71 23 23 Regions Visited 23 Branch Regions 11 Pre-discovered Areas 5 | . . 1 1 . . . . . . . . . . . . . . . . 3 . . . Known Exits Taken 19 | 1 1 1 1 1 1 1 . 1 . 1 1 1 1 1 1 . 1 1 1 1 1 . . Unknown Exits Taken . | . . . . . . . . . . . . . . . . . . . . . . . . Scrap Searched 3 | . . . . . . . . . . . . . . . . . . 1 1 . 1 . . Spaces Dug . | . . . . . . . . . . . . . . . . . . . . . . . . Terrain Destroyed 566 | . . . . 41 . . 14 1 118 58 2 5 6 188 . 3 24 8 12 . 9 35 42 Melee . | . . . . . . . . . . . . . . . . . . . . . . . . Projectile 104 | . . . . 2 . . . 1 11 1 2 5 6 13 . 3 20 8 12 . 4 14 2 AOE 462 | . . . . 39 . . 14 . 107 57 . . . 175 . . 4 . . . 5 21 40 Terrain Rammed . | . . . . . . . . . . . . . . . . . . . . . . . . Walls Destroyed . | . . . . . . . . . . . . . . . . . . . . . . . . Machines Disabled . | . . . . . . . . . . . . . . . . . . . . . . . . Actions | -11 -10 -10 -10 -8 -8 -7 -7 -6 -6 -6 -6 -6 -6 -6 -5 -5 -5 -5 -5 -5 -4 -4 -4 --------- Run | Yrd Mat Min Sub Mat Sto Fac DSF Fac Gar Fac Ext Cet Arc Hub Fac Gar Fac Upp Upp Zhi Pro Fac Was Total 12504 | 2505 131 525 718 637 459 54 416 260 546 1035 720 534 118 177 236 636 288 500 348 313 588 717 43 Wait 2642 | 1488 . 99 37 100 113 . 221 32 48 154 29 13 6 21 11 37 44 21 10 . . 155 3 Move 8680 | 998 124 405 623 400 260 54 128 178 394 769 531 468 96 127 201 516 226 465 317 299 573 503 25 Hop . | . . . . . . . . . . . . . . . . . . . . . . . . Pick Up 86 | . 1 7 1 20 8 . 5 3 4 6 9 3 . . 5 4 3 1 . 4 . 1 1 Fast Attach 38 | 8 1 . 2 5 2 . . . . 3 . . . . 6 2 . . 1 3 . 1 4 Attach 54 | . . 6 1 16 5 . 5 1 3 4 4 . . . 2 3 2 . . 2 . . . Detach 1 | . . 1 . . . . . . . . . . . . . . . . . . . . . Swap 26 | . . . . 2 1 . . 2 . 3 8 2 . . 1 2 1 . 1 . . 1 2 Drop 79 | 1 1 3 3 21 4 . 1 3 1 6 10 2 . . 9 2 1 1 2 5 . 2 1 Fire 561 | 9 3 4 45 58 38 . 34 27 73 49 47 34 6 18 1 41 9 8 14 . 12 24 7 Melee . | . . . . . . . . . . . . . . . . . . . . . . . . Ram . | . . . . . . . . . . . . . . . . . . . . . . . . Kick . | . . . . . . . . . . . . . . . . . . . . . . . . Crush 10 | . . . . . . . . . 1 9 . . . . . . . . . . . . . Escape Stasis . | . . . . . . . . . . . . . . . . . . . . . . . . Rewire . | . . . . . . . . . . . . . . . . . . . . . . . . Trap . | . . . . . . . . . . . . . . . . . . . . . . . . Miscellaneous 327 | 1 1 . 6 15 28 . 22 14 22 32 82 12 10 11 . 29 2 4 3 . 3 30 . Route ------- -11/Scrapyard -10/Materials -10/Mines (discovered 2 exits: *Mat / *Sub) -10/Subcaves (discovered 2 exits: *Mat x2) -8/Materials -8/Storage -7/Factory -7/DSF -6/Factory -6/Garrison -6/Factory -6/Extension (discovered 3 exits: *Fac x2 / *Cet) -6/Cetus (discovered 3 exits: *Fac x2 / *Arc) -6/Archives (discovered 3 exits: *Fac / *Hub x2) -6/Hub_04(d) (discovered 2 exits: *Fac x2) -5/Factory (discovered 5 exits: *Fac x4 / Gar) -5/Garrison (discovered 2 exits: *Fac x2) -5/Factory -5/Upper Caves -5/Upper Caves (discovered 2 exits: *Fac / *Zhi) -5/Zhirov -4/Proximity Caves -4/Factory (discovered 2 exits: *Res x2) -4/Waste History --------- Turn | Location | Event 31 | -11/Scrapyard | Upgraded with Propulsion slot (x1) 31 | -11/Scrapyard | Upgraded with Utility slot (x1) 31 | -11/Scrapyard | Upgraded with Weapon slot (x1) 58 | -11/Scrapyard | Identified exit to Materials 58 | -11/Scrapyard | Discovered exit to Materials (range 15) 2895 | -11/Scrapyard | Assembled infested the area 3123 | -11/Scrapyard | Entered Materials 3124 | -10/Materials | Build established: Hacker-Mutant 3327 | -10/Materials | Identified exit to Mines 3327 | -10/Materials | Discovered exit to Mines (range 6) 3335 | -10/Materials | Entered Mines 3342 | -10/Mines | Met a Derelict bent on vengeance 3348 | -10/Mines | Found the Drone Emporium 3355 | -10/Mines | Found Prototype Device 3356 | -10/Mines | Identified Sensor Drone Bay 3509 | -10/Mines | Met a Derelict who couldn't figure out how to use a Trap Extractor 3522 | -10/Mines | Upgraded with Utility slot (x2) 3861 | -10/Mines | Identified exit to Materials 3861 | -10/Mines | Discovered exit to Materials (range 9) 3946 | -10/Mines | Learned location of Zion (-7) 4063 | -10/Mines | Received a Rocket Launcher from a helpful Derelict 4065 | -10/Mines | Identified exit to Subcaves 4065 | -10/Mines | Discovered exit to Subcaves (range 14) 4109 | -10/Mines | Entered Subcaves 4111 | -10/Subcaves | Reached level 2 4129 | -10/Subcaves | A swath of the cavern ceiling suddenly collapsed 4438 | -10/Subcaves | Identified exit to Materials 4438 | -10/Subcaves | Discovered exit to Materials (range 15) 4724 | -10/Subcaves | Visited Clippyterm 4729 | -10/Subcaves | Learned location of Extension (-6) 4729 | -10/Subcaves | Learned Research security intel 4923 | -10/Subcaves | Discovered exit to Materials (range 13) 5242 | -10/Subcaves | Upgraded with Weapon slot (x1) 5291 | -10/Subcaves | Entered Materials 5293 | -8/Materials | Reached level 3 5293 | -8/Materials | Reached level 4 5293 | -8/Materials | Reached level 5 5293 | -8/Materials | Reached level 6 5417 | -8/Materials | Core integrity fell below 50% 5473 | -8/Materials | Upgraded with Propulsion slot (x2) 5497 | -8/Materials | Upgraded with Power slot (x1) 5761 | -8/Materials | Reached level 7 5868 | -8/Materials | Core integrity fell below 20% 6039 | -8/Materials | Identified exit to Storage 6039 | -8/Materials | Discovered exit to Storage (range 16) 6205 | -8/Materials | Entered Storage 6207 | -8/Storage | Reached level 8 6545 | -8/Storage | Reached level 9 6595 | -8/Storage | Build established: Scavenger-Mutant 6726 | -8/Storage | Repaired Lgt. Treads 6754 | -8/Storage | Repaired Lgt. Treads 6850 | -8/Storage | Identified exit to Factory 6850 | -8/Storage | Discovered exit to Factory (range 15) 6897 | -8/Storage | Entered Factory 6899 | -7/Factory | Reached level 10 6899 | -7/Factory | Reached level 11 6962 | -7/Factory | Build established: Scavenger-Skirmisher 6984 | -7/Factory | Identified exit to DSF 6984 | -7/Factory | Entered DSF 6994 | -7/DSF | Upgraded with Weapon slot (x1) 6994 | -7/DSF | Upgraded with Utility slot (x1) 7025 | -7/DSF | Additional patrols routed to DSF 7285 | -7/DSF | Build established: Scavenger-Tank 7293 | -7/DSF | Reached level 12 7418 | -7/DSF | Sterilization system engaged 7438 | -7/DSF | Ambient heat levels rising (+10) 7453 | -7/DSF | Ambient heat levels rising (+10) 7468 | -7/DSF | Ambient heat levels rising (+10) 7483 | -7/DSF | Ambient heat levels rising (+10) 7498 | -7/DSF | Ambient heat levels rising (+10) 7513 | -7/DSF | Ambient heat levels rising (+10) 7521 | -7/DSF | Identified exit to Factory 7521 | -7/DSF | Discovered exit to Factory (range 15) 7528 | -7/DSF | Ambient heat levels rising (+10) 7543 | -7/DSF | Ambient heat levels rising (+10) 7543 | -7/DSF | Entered Factory 7545 | -6/Factory | Reached level 13 7545 | -6/Factory | Reached level 14 7574 | -6/Factory | Identified exit to Garrison 7971 | -6/Factory | Entered Garrison 7971 | -6/Garrison | Reached level 15 8003 | -6/Garrison | Triggered checkpoint 8016 | -6/Garrison | Assembled breached garrison interior 8129 | -6/Garrison | Destroyed 8 combat bots 8196 | -6/Garrison | Phase Generator disabled 8212 | -6/Garrison | Installed Relay Interface Framework 8374 | -6/Garrison | Destroyed 8 combat bots 8451 | -6/Garrison | Destroyed 12 combat bots 8469 | -6/Garrison | Spotted B-75 Beast 8507 | -6/Garrison | Destroyed B-75 Beast 8782 | -6/Garrison | Identified exit to Factory 8782 | -6/Garrison | Discovered exit to Factory (range 15) 8789 | -6/Garrison | Destroyed 10 combat bots 8881 | -6/Garrison | Reached level 16 8911 | -6/Garrison | Entered Factory 9102 | -6/Factory | Core integrity fell below 50% 9264 | -6/Factory | Core integrity fell below 20% 9334 | -6/Factory | Spotted B-75 Beast 9373 | -6/Factory | Destroyed B-75 Beast 9998 | -6/Factory | Reached level 17 10060 | -6/Factory | Repaired Imp. Grenade Launcher 10371 | -6/Factory | Repaired Shield Generator 10425 | -6/Factory | Identified exit to Extension 10425 | -6/Factory | Discovered exit to Extension (range 16) 10496 | -6/Factory | Entered Extension 10648 | -6/Extension | Rescued a captive Derelict 10707 | -6/Extension | Rescued a captive Derelict 10716 | -6/Extension | Rescued a captive Derelict 10773 | -6/Extension | Rescued a captive Derelict 10773 | -6/Extension | Rescued a captive Derelict 10848 | -6/Extension | Reached level 18 10889 | -6/Extension | Rescued a captive Derelict 10891 | -6/Extension | Rescued a captive Derelict 10938 | -6/Extension | Spotted B-75 Beast 10948 | -6/Extension | Spotted B-75 Beast 11010 | -6/Extension | Destroyed B-75 Beast 11011 | -6/Extension | Lost 3 allies 11022 | -6/Extension | Destroyed B-75 Beast 11119 | -6/Extension | Identified exit to Factory 11119 | -6/Extension | Discovered exit to Factory (range 3) 11308 | -6/Extension | Lost 3 allies 11541 | -6/Extension | Discovered exit to Factory (range 16) 11541 | -6/Extension | Identified exit to Cetus 11541 | -6/Extension | Discovered exit to Cetus (range 16) 11614 | -6/Extension | Entered Cetus 11634 | -6/Cetus | Spotted Cetus Guard 11634 | -6/Cetus | Spotted Cetus Guard 11636 | -6/Cetus | Destroyed Cetus Guard 11637 | -6/Cetus | Spotted Cetus Guard 11638 | -6/Cetus | Spotted Cetus Guard 11647 | -6/Cetus | Destroyed Cetus Guard 11650 | -6/Cetus | Destroyed Cetus Guard 11660 | -6/Cetus | Destroyed Cetus Guard 11832 | -6/Cetus | Reached level 19 11994 | -6/Cetus | Identified exit to Archives 11994 | -6/Cetus | Discovered exit to Archives (range 15) 12022 | -6/Cetus | Spotted Cetus Guard 12022 | -6/Cetus | Spotted Cetus Guard 12026 | -6/Cetus | Spotted Cetus Guard 12043 | -6/Cetus | Destroyed Cetus Guard 12060 | -6/Cetus | Destroyed Cetus Guard 12063 | -6/Cetus | Spotted Cetus Guard 12068 | -6/Cetus | Destroyed Cetus Guard 12079 | -6/Cetus | Destroyed Cetus Guard 12089 | -6/Cetus | Discovered exit to Factory (range 16) 12098 | -6/Cetus | Met Revision 17 12311 | -6/Cetus | Discovered exit to Factory (range 16) 12364 | -6/Cetus | Security sweep announced 12492 | -6/Cetus | Entered Archives 12567 | -6/Archives | Discovered exit to Factory (range 15) 12598 | -6/Archives | Identified exit to Hub_04(d) 12598 | -6/Archives | Discovered exit to Hub_04(d) (range 15) 12613 | -6/Archives | Discovered exit to Hub_04(d) (range 16) 12624 | -6/Archives | Unable to access archive contents 12640 | -6/Archives | Unable to access archive contents 12679 | -6/Archives | Entered Hub_04(d) 12687 | -6/Hub_04(d) | Discovered exit to Factory (range 15) 12943 | -6/Hub_04(d) | Discovered exit to Factory (range 7) 12946 | -6/Hub_04(d) | Network Hub disabled 12964 | -6/Hub_04(d) | Spotted Lightning 12971 | -6/Hub_04(d) | Entered Factory 12973 | -5/Factory | Reached level 20 13008 | -5/Factory | Reached level 21 13187 | -5/Factory | Identified exit to Factory 13187 | -5/Factory | Discovered exit to Factory (range 15) 13329 | -5/Factory | Identified exit to Garrison 13329 | -5/Factory | Entered Garrison 13390 | -5/Garrison | Spotted B-75 Beast 13432 | -5/Garrison | Destroyed B-75 Beast 13517 | -5/Garrison | Triggered checkpoint 13523 | -5/Garrison | Heavy support dispatched to Factory 13589 | -5/Garrison | Spotted B-75 Beast 13656 | -5/Garrison | Destroyed B-75 Beast 13700 | -5/Garrison | Build established: Hacker-Tank 13734 | -5/Garrison | Identified exit to Factory 13734 | -5/Garrison | Discovered exit to Factory (range 8) 13804 | -5/Garrison | Heavy support dispatched to Factory 14102 | -5/Garrison | Triggered checkpoint 14123 | -5/Garrison | Discovered exit to Factory (range 10) 14252 | -5/Garrison | Learned Factory security intel 14295 | -5/Garrison | Expanded RIF knowledge: Command Fork 14369 | -5/Garrison | Entered Factory 14638 | -5/Factory | Reached level 22 14712 | -5/Factory | Identified exit to Upper Caves 14712 | -5/Factory | Discovered exit to Upper Caves (range 18) 14814 | -5/Factory | Entered Upper Caves 15110 | -5/Upper Caves | Attracted the attention of an 0b10 checkpoint 15272 | -5/Upper Caves | Learned location of 1 exit from Factory 15421 | -5/Upper Caves | Learned Factory emergency access door positions 15495 | -5/Upper Caves | Identified exit to Upper Caves 15495 | -5/Upper Caves | Discovered exit to Upper Caves (range 17) 15611 | -5/Upper Caves | Entered another Upper Caves area 15687 | -5/Upper Caves | Discovered exit to Factory (range 11) 16039 | -5/Upper Caves | Encountered a Warlord checkpoint 16040 | -5/Upper Caves | Spotted B-75 Beast 16066 | -5/Upper Caves | Destroyed B-75 Beast 16125 | -5/Upper Caves | Identified exit to Zhirov 16125 | -5/Upper Caves | Discovered exit to Zhirov (range 6) 16181 | -5/Upper Caves | Entered Zhirov 16181 | -5/Zhirov | Identified exit to Proximity Caves 16181 | -5/Zhirov | Discovered exit to Proximity Caves (range 3) 16210 | -5/Zhirov | Met Zhirov 16252 | -5/Zhirov | Found Alien Artifact 16254 | -5/Zhirov | Identified Transdimensional Reconstructor 16254 | -5/Zhirov | Warped through subspace 16328 | -5/Zhirov | Found Alien Artifact 16328 | -5/Zhirov | Identified Integrated Dissipator 16328 | -5/Zhirov | Installed Integrated Dissipator, increased core heat dissipation (+20) 16422 | -5/Zhirov | Learned location of Quarantine (-2) 16422 | -5/Zhirov | Learned location of Testing (-3) 16422 | -5/Zhirov | Learned location of Command (-1) 16454 | -5/Zhirov | Zhirov requested help retrieving the SGEMP Prototype 16673 | -5/Zhirov | Entered Proximity Caves 16675 | -4/Proximity Caves | Reached level 23 16763 | -4/Proximity Caves | Learned Research stockpile data 16821 | -4/Proximity Caves | Spotted B-86 Titan 16843 | -4/Proximity Caves | Destroyed B-86 Titan 17149 | -4/Proximity Caves | Discovered exit to Factory (range 12) 17220 | -4/Proximity Caves | Attracted the attention of an 0b10 checkpoint 17633 | -4/Proximity Caves | Entered Factory 17634 | -4/Factory | Identified exit to Research 17635 | -4/Factory | Reached level 24 17930 | -4/Factory | Fabricated Exp. Optical Array (x1) 18618 | -4/Factory | Reached level 25 18705 | -4/Factory | Discovered exit to Research (range 20) 18705 | -4/Factory | Sucked down chute 18705 | -4/Factory | Entered Waste 18718 | -4/Waste | Spotted C-40 Crusher 18748 | -4/Waste | Crushed by Compactor (1 part destroyed, 1 dropped) 18755 | -4/Waste | Crushed by Compactor (1 part destroyed) 18755 | -4/Waste | Spotted C-40 Crusher 18758 | -4/Waste | Crushed by Compactor (0 parts destroyed, 2 dropped) 18761 | -4/Waste | Crushed by Compactor (1 part destroyed) 18765 | -4/Waste | Crushed by Compactor (1 part destroyed, 1 dropped) 18768 | -4/Waste | Crushed by Compactor (1 part destroyed, 2 dropped) 18777 | -4/Waste | Self-destructed Last Messages --------------- 18758_ Neutrino Core crushed. 18760_ The unstable cave ceiling collapses. 18760_ Acquired Imp. Medium Treads. 18761_ Adv. Shield Generator crushed. 18763_ Acquired Neutrino Core. 18764_ Slug penetrates C-40 Crusher. 18765_ Imp. Medium Treads crushed. 18765_ Fusion Reactor crushed. 18767_ The unstable cave ceiling collapses. 18767_ Slug penetrates C-40 Crusher. 18768_ Imp. Medium Treads crushed. 18768_ KE Penetrator crushed. 18768_ Wave Gun crushed. 18770_ Acquired Fusion Reactor. 18771_ KE Penetrator crushed. 18772_ The unstable cave ceiling collapses. 18773_ Acquired Wave Gun. 18774_ System corrupted: Particle Accelerator rejected. 18774_ The unstable cave ceiling collapses. Map ----- +----------------------------------------------------+ | ??????????????????????????????????????? | | ??????????????????????????????????????? | | ??????????????????????????????????????? | | ??????????????????????????????????????? | | ??????????????????????????????????????? | | ??????????????????????????????????????? | | ??????????????????????????????????????? | | ??????????????????????????????????????? | | ??????????????????????????????????????? | | ??????????????????????????????????????? | | ??????????????????????????????????????? | | ??????????????????????????????????????? | | ??????????????????????????????????????? | | ??????????????????????????????????????? | | ??????????????????????????????????????? | | ??????????????????????????????????????? | | ??????????????????????????????????????? | | ??????????????????????????????????????? | | ??????????????????????????????????????? | | ??????????????????????????????????????? | | ??????????????????????????????????????? | | ??????????????????????????????###?????? | | ?????????????????????????????? #?????? | | ?????????????############???? #?????? | | ?????????????# CC #???? #?????? | | ?????????????#@CC #??? #?????? | | ?????????????# #### ####### | | ?????????????# | | ?????????????# | | ?????????????# | | ?????????????# | | ?????????????# # # ##### | | ?????????????# ## # #??? | | ?????????????# ###??? | | ?????????????####### # #??? | | ??????????????????## ;# ##??? | | ???????????????????# # ## #???? | | ???????????????????######? ###???? | | ?????????????????????????? #?????? | | ?????????????????????????? C #?????? | | ??????????????????????????## C #?????? | | ???????????????????????????? #?????? | | ???????????????????????????? #?????? | | ???????????????????????????? #?????? | | ???????????????????????????? #?????? | | ???????????????????????????? #?????? | | ???????????????????????????? #?????? | | ???????????????????????????? #?????? | | ???????????????????????????? ??????? | | ???????????????????????????? ?????????? | +----------------------------------------------------+ Best States ------------- Heat Dissipation 112 Energy Generation 47 Energy Capacity 760 Matter Stores 600 Matter Capacity 600 Sight Range 23 Robot Scan Range 17 Terrain Scan Range 20 Terrain Scan Density 210 ECM Strength 2 Armor Coverage 375 Resistance: KI 40 Resistance: TH 55 Resistance: EX 60 Resistance: EM 35 Resistance: I 35 Resistance: S 35 Resistance: P 35 Power Shielding 90 Weapon Shielding 66 Evasion (%) 40 Core Analysis 6 Recoil Reduction 4 Particle Charging 30 Offensive Hacking 20 Item Schematics ----------------- Adv. Heat Sink | -5/Factory | Scanalyzed Assault Drone Bay | -5/Zhirov | Free Exp. Heat Sink | -5/Zhirov | Free Exp. Optical Array | -5/Zhirov | Free Imp. Arc Thrower | -5/Zhirov | Free Robot Schematics ------------------ None Fabricated ------------ Exp. Optical Array | x1 | -4/Factory Alien Tech Used ----------------- Transdimensional Reconstructor Integrated Dissipator Achievements -------------- Curiosity Killed The Cat It Was An Accident, I Swear Left-hand Path Revising The Future Challenges ------------ None RPGLIKE | -11 -10 -10 -10 -8 -8 -7 -7 -6 -6 -6 -6 -6 -6 -6 -5 -5 -5 -5 -5 -5 -4 -4 -4 --------- Run | Yrd Mat Min Sub Mat Sto Fac DSF Fac Gar Fac Ext Cet Arc Hub Fac Gar Fac Upp Upp Zhi Pro Fac Was Levels Raised 24 | . . . 1 5 2 2 1 2 2 1 1 1 . . 2 . 1 . . . 1 2 . XP Earned 42101 | 6000 285 750 1000 8128 2970 1949 2707 3151 1570 1858 2020 1018 302 781 1558 1396 281 352 369 220 1484 1885 67 XP Spent 19665 | 1500 1500 1900 800 2400 1160 . 6135 . . 665 1450 . . . . 2155 . . . . . . . Upgrades 55 | 3 3 2 1 3 5 . 17 . . 4 8 . . . . 9 . . . . . . . Power Slot 1 | . . . . 1 . . . . . . . . . . . . . . . . . . . Propulsion Slot 3 | 1 . . . 2 . . . . . . . . . . . . . . . . . . . Utility Slot 4 | 1 . 2 . . . . 1 . . . . . . . . . . . . . . . . Weapon Slot 3 | 1 . . 1 . . . 1 . . . . . . . . . . . . . . . . Core Integrity 10 | . . . . . 4 . . . . 2 4 . . . . . . . . . . . . Heat Dissipation 6 | . . . . . . . 2 . . . . . . . . 4 . . . . . . . Energy Generation 2 | . . . . . . . . . . . . . . . . 2 . . . . . . . Energy Storage 5 | . . . . . . . . . . . 2 . . . . 3 . . . . . . . Matter Storage 6 | . . . . . . . 2 . . 2 2 . . . . . . . . . . . . Mass Support 1 | . . . . . . . 1 . . . . . . . . . . . . . . . . Inventory Capacity 5 | . 3 . . . 1 . 1 . . . . . . . . . . . . . . . . Sensor Range 1 | . . . . . . . 1 . . . . . . . . . . . . . . . . Terrain Scan Density 2 | . . . . . . . 2 . . . . . . . . . . . . . . . . Ranged Accuracy 2 | . . . . . . . 2 . . . . . . . . . . . . . . . . KI Resistance % 1 | . . . . . . . 1 . . . . . . . . . . . . . . . . TH Resistance % 1 | . . . . . . . 1 . . . . . . . . . . . . . . . . EX Resistance % 1 | . . . . . . . 1 . . . . . . . . . . . . . . . . KI Damage % 1 | . . . . . . . 1 . . . . . . . . . . . . . . . . Protomatter Created 3996 | 7 19 . 74 260 260 . 167 164 213 239 391 220 144 234 . 515 217 269 132 . 63 408 . Integrity Restored 7025 | 7 15 . 132 345 603 . 499 301 381 717 1848 262 231 225 . 590 25 63 46 . 54 681 . Core 6825 | 7 15 . 132 345 603 . 465 301 381 717 1848 262 231 225 . 568 25 63 46 . 54 537 . Parts 200 | . . . . . . . 34 . . . . . . . . 22 . . . . . 144 . Protomatter Decayed 1647 | 11 . . 50 18 59 . . 3 392 . 45 67 67 38 . 316 25 247 116 . 77 116 . Game ------ Seed rpglike Manual? 1 Play Time 02:40:56 Cumulative 37.2 hours Start 2024.08.15 @ 20:59:39 End 2024.08.18 @ 16:59:44 Sessions 5 Manual Loads 0 Difficulty Explorer Special Mode Winter2019/RPGLIKE Game No. 32 Rogue 0 Adventurer 18 Explorer 14 Win Type - Total 0 Types 0/0/0/0/0/0/0/0/0 Lore% 23 Gallery% 32 Achievement% 39 Wizard Run 0 Options --------- Layout 1 ASCII 0 Keyboard 0 Movement Mouse Keybinds 0 Fullscreen 1 Font 16/SmallcapsGlow Map View 50x35 Zoom Use 0% Tactical HUD 1 Map Filters NONE Filters NONE Steam 1 RUN: 8326bd24-b7e6-4ead-adb5-a81d149a52a6